Cogmind - Beta 9.6 @@@ ROGUE MODE // 2020.08.31 @ 22:51:34 // Winter2019/RPGLIKE Player: Hermelin Result: Destroyed by as-49884 with Assembled F-torch Performance ------------- Evolutions (0) 0 Regions Visited (2) 400 Robots Destroyed (44) 220 Value Destroyed (933) 933 Prototype IDs (5) 100 Alien Tech Used (0) 0 Bonus (-68) -68 TOTAL SCORE: 1585 Bonus ------- Follower Combat Kills 70 Friendly Fire -138 Cogmind --------- Core Integrity 0/600 Matter 271/300 Energy 159/160 System Corruption 0% Temperature Cool (26) Movement Hovering (80) Location -10/Mines Parts ------- > --- POWER (1) -------- Light Nuclear Core > --- PROPULSION (2) --- Combat Airjet > --- UTILITY (4) ------ Improved Terrain Scanner Targeting Computer Launcher Guidance Computer > --- WEAPON (2) ------- Mini Grenade Launcher > --- INVENTORY (2) ---- Shock Absorption System Assault Rifle Peak State ------------ > --- POWER ------------ Light Nuclear Core > --- PROPULSION ------- Light Treads Combat Airjet > --- UTILITY ---------- Improved Terrain Scanner Targeting Computer Launcher Guidance Computer Light Armor Plating > --- WEAPON ----------- Assault Rifle Mini Grenade Launcher > --- INVENTORY -------- Assault Rifle Datajack [Rating: 20] Favorites ----------- Power Light Nuclear Core Engine Ion Engine Power Core Light Nuclear Core Propulsion Light Treads Treads Light Treads Leg Aluminum Leg Hover Unit Combat Airjet Utility Light Armor Plating Device Improved Terrain Scanner Processor Targeting Computer Protection Light Armor Plating Weapon Assault Rifle Ballistic Gun Assault Rifle Launcher Mini Grenade Launcher Build | -11 -10 -10 ------- Run | Scr Mat Min Slots Evolved 5 | 3 1 1 Power . | . . . Propulsion 1 | 1 . . Utility 3 | 1 1 1 Weapon 1 | 1 . . Parts Attached 18 | 7 6 5 Power 3 | 1 1 1 Engine 1 | 1 . . Core 2 | . 1 1 Reactor . | . . . Propulsion 5 | 2 2 1 Treads 2 | . 2 . Leg 2 | 2 . . Wheel . | . . . Hover 1 | . . 1 Flight . | . . . Utility 7 | 2 3 2 Device 1 | 1 . . Storage . | . . . Processor 3 | 1 1 1 Hackware . | . . . Protection 3 | . 2 1 Artifact . | . . . Weapon 3 | 2 . 1 Energy Gun . | . . . Energy Cannon . | . . . Ballistic Gun 2 | 2 . . Ballistic Cannon . | . . . Launcher 1 | . . 1 Special Weapon . | . . . Impact Weapon . | . . . Slashing Weapon . | . . . Piercing Weapon . | . . . Special Melee Weapon . | . . . Unidentified Prototypes . | . . . Parts Lost 2 | . . 2 Power . | . . . Propulsion . | . . . Utility 2 | . . 2 Weapon . | . . . Highest Loss Streak 2 | . . 2 Average Slot Usage (%) 99 | . 99 100 Engine 2 | . 3 . Core 9 | . 9 11 Treads 22 | . 22 22 Leg 2 | . 3 . Device 12 | . 12 11 Processor 12 | . 12 11 Protection 12 | . 7 20 Ballistic Gun 24 | . 26 22 Naked Turns . | . . . Heaviest Build 16 | 10 13 16 Greatest Support 40 | 20 40 40 Greatest Overweight (x) . | . . . Average Overweight (x) . | . . . Largest Inventory Capacity 2 | 2 2 2 Average Capacity 1 | 1 2 2 Most Carried 2 | 1 2 2 Average Carried 1 | . 1 1 Final Capacity 2 | 2 2 2 Final Carried 2 | 1 2 2 Class Distribution -------------------- 75% | Scavenger-Mutant 24% | Mutant Dominant Class ---------------- Scavenger-Mutant | -10/Materials Scavenger-Mutant | -10/Mines Resources | -11 -10 -10 ----------- Run | Scr Mat Min Matter Collected 1137 | 408 514 215 Remotely . | . . . Salvage Created 1517 | 271 775 471 Parts 95 | 21 48 26 Haulers Intercepted 1 | . 1 . Recyclers Shooed . | . . . Parts Field Recycled . | . . . Retrieved Matter . | . . . Parts Self-Destructed . | . . . Prevented . | . . . Kills | -11 -10 -10 ------- Run | Scr Mat Min Combat Hostiles Destroyed 25 | . 16 9 Guns 25 | . 16 9 Classes Destroyed 9 | 3 5 1 Worker 4 | 2 1 1 Tunneler 8 | 8 . . Hauler 1 | . 1 . Recycler 2 | 1 . 1 Operator 1 | . 1 . Watcher 2 | . 2 . Swarmer 5 | . 3 2 Grunt 20 | . 13 7 Demolisher 1 | . . 1 Best Kill Streak 4 | 4 4 2 Combat Bots Only 3 | . 3 2 Max Kills in Single Turn 2 | 2 1 1 Gunslinging . | . . . Exploded . | . . . Melee . | . . . Uniques/NPCs Destroyed . | . . . Combat | -11 -10 -10 -------- Run | Scr Mat Min Damage Taken 1893 | . 837 1056 Core 1362 | . 619 743 Absorbed by Shields . | . . . Redirected to Core 1101 | . 541 560 Core Remaining (%) 100 | 100 . . Volleys Fired 133 | 23 76 34 Largest 2 | 2 2 2 Hottest 40 | 40 40 40 Shots Fired 266 | 46 152 68 Gun 266 | 46 152 68 Cannon . | . . . Launcher . | . . . Special . | . . . Kinetic 266 | 46 152 68 Thermal . | . . . Explosive . | . . . Electromagnetic . | . . . Robot Hit Streak 24 | 11 24 15 Robot Miss Streak 8 | 3 8 2 Penetration Max . | . . . Secondary Targets 3 | . 2 1 Max Gunslinging Chain 1 | . 1 1 Shots Hit Robots 179 | 27 102 50 Core Hits 71 | 11 37 23 Critical Hits 2 | 1 . 1 Critical Kills 1 | 1 . . Critical Parts Destroyed 1 | . . 1 Melee Attacks . | . . . Impact . | . . . Slashing . | . . . Piercing . | . . . Sneak Attacks . | . . . Combat Hostiles . | . . . Follow-up Attacks . | . . . Damage Inflicted 2347 | 375 1266 706 Guns 2347 | 375 1266 706 Cannons . | . . . Explosions . | . . . Melee . | . . . Ramming . | . . . Kinetic 2347 | 375 1266 706 Thermal . | . . . Explosive . | . . . Electromagnetic . | . . . Impact . | . . . Slashing . | . . . Piercing . | . . . Highest Corruption . | . . . Average Corruption . | . . . Corruption Purged . | . . . Overload Shots . | . . . Overflow Damage . | . . . Projectiles . | . . . Explosions . | . . . Melee . | . . . Knockbacks . | . . . Impact . | . . . Kinetic . | . . . Secondary . | . . . Self-Inflicted Damage . | . . . Shots . | . . . Rammed 1 | . 1 . Targets Rammed 1 | . 1 . Kicked . | . . . Crushed . | . . . Highest Temperature 105 | 6 32 105 Average Temperature 22 | 6 13 29 Received Heat Transfer 671 | . 381 290 Siege Activations . | . . . Robots Corrupted . | . . . Combat Hostiles . | . . . Parts Fried . | . . . Impact Corruptions . | . . . Robots Melted . | . . . Combat Hostiles . | . . . Parts Melted . | . . . Heat Transferred . | . . . Parts Sabotaged . | . . . Parts Stolen . | . . . Parts Stripped . | . . . Power Chain Reactions . | . . . Missiles Intercepted . | . . . Alert | -11 -10 -10 ------- Run | Scr Mat Min Peak Influence 380 | 55 380 236 Average Influence 176 | 24 233 137 Maximum Alert Level 1 | . 1 1 Low Security (%) 52 | 100 25 77 Level 1 47 | . 74 22 Level 2 . | . . . Level 3 . | . . . Level 4 . | . . . Level 5 . | . . . High Security . | . . . Max Security . | . . . Squads Dispatched 7 | . 7 . Investigation 6 | . 6 . Extermination . | . . . Reinforcement 1 | . 1 . Assault . | . . . Garrison . | . . . Intercept . | . . . Construction Impeded . | . . . Haulers Reinforced . | . . . Stealth | -11 -10 -10 --------- Run | Scr Mat Min Distress Signals 1 | . 1 . Communications Jammed . | . . . Distress Signals . | . . . Times Spotted 46 | . 25 21 Peak Tracking Total 7 | . 5 7 Tactical Retreats 3 | . 1 2 Traps | -11 -10 -10 ------- Run | Scr Mat Min Traps Triggered 3 | . 3 . Indirectly . | . . . Trap Hack Attempts . | . . . Triggered . | . . . Disarmed . | . . . Reprogrammed . | . . . Reused . | . . . Traps Extracted . | . . . Installed . | . . . Triggered . | . . . Machines | -11 -10 -10 ---------- Run | Scr Mat Min Machines Disabled 1 | . 1 . Max in Single Turn 1 | . 1 . Machines Sabotaged . | . . . Garrisons Compromised . | . . . Overloaded Fab Kills . | . . . Fab Network Shutdowns . | . . . Hacking | -11 -10 -10 --------- Run | Scr Mat Min Machines Accessed 10 | . 10 . Terminals 7 | . 7 . Fabricators . | . . . Repair Stations 1 | . 1 . Recycling Units 2 | . 2 . Scanalyzers . | . . . Garrison Access . | . . . Total Hacks 28 | . 28 . Successful 16 | . 16 . Failed 11 | . 11 . Catastrophic . | . . . Database Lockouts 1 | . 1 . Manual 16 | . 16 . Terminals 22 | . 22 . Fabricators . | . . . Repair Stations 2 | . 2 . Recycling Units 4 | . 4 . Scanalyzers . | . . . Garrison Access . | . . . Terminal Hacks 11 | . 11 . Robot Analysis 4 | . 4 . Prototype ID Bank 5 | . 5 . Recall Investigation 1 | . 1 . Zone Layout 1 | . 1 . Fabricator Hacks . | . . . Repair Station Hacks 2 | . 2 . Scan Component 1 | . 1 . Repair 1 | . 1 . Recycling Unit Hacks 1 | . 1 . Report Inventory 1 | . 1 . Scanalyzer . | . . . Garrison Access Hacks . | . . . Unauthorized Hacks 2 | . 2 . Terminals . | . . . Fabricators . | . . . Repair Stations . | . . . Recycling Units 2 | . 2 . Tunnel 2 | . 2 . Scanalyzers . | . . . Garrison Access . | . . . Data Cores Recovered . | . . . Used . | . . . Hacking Detections 8 | . 8 . Full Trace Events 1 | . 1 . Feedback Events . | . . . Feedback Blocked . | . . . Robot Schematics Acquired . | . . . Robots Built . | . . . Matter . | . . . Time . | . . . Total Robot Build Rating . | . . . Part Schematics Acquired . | . . . Parts Built . | . . . Matter . | . . . Time . | . . . Total Part Build Rating . | . . . Parts Repaired 1 | . 1 . Time 26 | . 26 . Parts Recycled . | . . . Recycled Matter . | . . . Retrieved Matter . | . . . Retrieved Components . | . . . Parts Scanalyzed . | . . . Part Schematics Acquired . | . . . Parts Damaged . | . . . Bothacking | -11 -10 -10 ------------ Run | Scr Mat Min Used RIF Installer . | . . . Robots Hacked . | . . . Non-combat . | . . . Combat . | . . . Robot Hacks Applied . | . . . Relay Couplers Released . | . . . Robots Rewired . | . . . Allies Hacked . | . . . Hacks Repelled . | . . . Allies | -11 -10 -10 -------- Run | Scr Mat Min Total Allies 3 | . . 3 Largest Group 3 | . . 3 Highest-Rated Group 40 | . . 40 Highest-Rated Ally 16 | . . 16 Total Orders . | . . . Ally Attacks 31 | . . 31 Total Damage 346 | . . 346 Kills 2 | . . 2 Allies Corrupted . | . . . Allies Melted . | . . . Intel | -11 -10 -10 ------- Run | Scr Mat Min Robot Analysis Total 4 | . 4 . Derelict Logs Recovered 2 | . . 2 Drone Launches . | . . . Drone Recoveries . | . . . Exploration | -11 -10 -10 ------------- Run | Scr Mat Min Turns Passed 2255 | 248 1192 815 Spaces Moved 1096 | 131 553 412 Core 4 | 4 . . Treads 868 | . 464 404 Legs 216 | 127 89 . Wheels . | . . . Hover 8 | . . 8 Flight . | . . . Fastest Speed 50 | 50 120 80 Average Speed 151 | 117 153 158 Slowest Speed 160 | 120 160 160 Overloaded Moves . | . . . Propulsion Burnouts . | . . . Robots Hopped . | . . . Cave-ins Triggered . | . . . Exploration Rate (%) 58 | 5 93 77 Regions Visited 2 Branch Regions 1 Pre-discovered Areas 4 | . 2 2 Known Exits Taken . | . . . Unknown Exits Taken 2 | 1 1 . Scrap Searched 2 | . . 2 Spaces Dug . | . . . Terrain Destroyed . | . . . Melee . | . . . Projectile . | . . . AOE . | . . . Actions | -11 -10 -10 --------- Run | Scr Mat Min Total 1423 | 175 742 506 Wait 130 | 14 86 30 Move 1094 | 130 552 412 Hop . | . . . Pick Up 3 | 1 1 1 Fast Attach 17 | 7 6 4 Attach . | . . . Detach . | . . . Swap 1 | . . 1 Drop 9 | . 4 5 Fire 133 | 23 76 34 Melee . | . . . Ram . | . . . Kick . | . . . Crush 1 | . 1 . Escape Stasis . | . . . Rewire . | . . . Trap . | . . . Miscellaneous 35 | . 16 19 Route ------- -11/Scrapyard -10/Materials (discovered 5 exits: [*Mat x3] / [*Min x2]) -10/Mines (discovered 2 exits: [*Mat x2]) History --------- Turn | Location | Event 2 | -11/Scrapyard | Upgraded with Propulsion slot (x1) 2 | -11/Scrapyard | Upgraded with Utility slot (x1) 2 | -11/Scrapyard | Upgraded with Weapon slot (x1) 15 | -11/Scrapyard | Discovered new exit (range 15) 249 | -11/Scrapyard | Entered Materials 311 | -10/Materials | Build established: Mutant 379 | -10/Materials | Discovered new exit (range 11) 601 | -10/Materials | Discovered new exit (range 15) 624 | -10/Materials | Discovered new exit (range 13) 652 | -10/Materials | Reached level 2 699 | -10/Materials | Upgraded with Utility slot (x1) 856 | -10/Materials | Build established: Scavenger-Mutant 940 | -10/Materials | Discovered new exit (range 16) 963 | -10/Materials | Core integrity fell below 50% 1112 | -10/Materials | Discovered new exit (range 16) 1266 | -10/Materials | Central database locked down 1362 | -10/Materials | Repaired Lgt. Armor Plating 1441 | -10/Materials | Entered Mines 1443 | -10/Mines | Reached level 3 1446 | -10/Mines | Assisted by bots powering up and referring to "LRC-V3" 1597 | -10/Mines | Upgraded with Utility slot (x1) 1626 | -10/Mines | Learned location of Storage (-7) 1866 | -10/Mines | Discovered new exit (range 13) 1989 | -10/Mines | Discovered new exit (range 11) 2188 | -10/Mines | Assembled infested the area 2193 | -10/Mines | Assisted by a Guerilla fighting off Assembled 2250 | -10/Mines | Core integrity fell below 20% 2256 | -10/Mines | Destroyed by as-49884 with Assembled F-torch Last Messages --------------- 02239_ as-60550 suffers critical hit. 02239_ as-60550 destroyed. 02240_ 5U-HQ1(h) destroyed. 02242_ Dropped Lgt. Treads. 02242_ Acquired Cmb. Airjet. 02243_ The unstable cave ceiling collapses. 02244_ Lgt. Armor Plating destroyed. 02245_ Dropped Assault Rifle. 02245_ Acquired Mni. Grenade Launcher. 02248_ Acquired Launcher Guidance Computer. 02249_ Dropped Datajack. 02251_ K-01 Serf collects debris. 02251_ Assault Rifle severed. 02251_ Acquired Shock Absorption System. 02252_ Lgt. Armor Plating destroyed. 02253_ The unstable cave ceiling collapses. 02254_ K-01 Serf collects debris. 02255_ Protomatter-6 decays. 02255_ Dropped Lgt. Treads. 02256_ The unstable cave ceiling collapses. Map ----- +----------------------------------------------------+ | ########?## =""" """ ###### """ """ ########### # | | ##??####### """ """ ###### """ """ ########### # | | ######?#### """ """ ###### ########### # | | ########### ######### ################ # | | ########### ######?## ################ # | | ########### ############?##### ################ # | | ########### ############## #?### | | ######?##?# ######## #### #######?# ###### ##### | | ########### ####### ### ###### # ###### ##### | | ########### #?### ## ###### ####? | | ########### #### ##### ##### | | ####?###### < ##### ####? ##### | | ##?######### ## ## ###### ##### ??# | | ?########### ## #### ###### ######? #? | | ##?######### ########### ##### ##??##??? | | ##### ############ # ? ? ??? ?? | | ##### ############?#?##### #? ? ?? ? | | ##### #####?###################%##### ####?## ??? | | ##### ######?###?############## ####" ##?#### | | ##### ############### ####### #|% ########?? | | ?#### #### ######### ##; # #%## ########?###?? | | ?##?# ### ######## #; #!=#######?#####?## | | #?### ### ######## #;[ a*%# #####?#?##??## | | ?#### ## ######## /r # #####?# #?? | | #### ######## a[ ##?### ? ? | | ### ####### @ = a ;##### ? | | ## #####; ## ;;#### | | ## ##### #### a | | ## < ###### #### | | ## ######### ##### ##""## | | ?# #######?## t####### ! ######? | | ### ##?#######= ###### !%= ##?? | | #### ########## *#### = ##?? | | #?### ########## ### ### ###? | | ##### ########## ### ### # #?# ###? | | ?#### ########### #### ##### ###?##? ? | | ?#### ########### ############ ###? ? | | #?## ########### *########### ##?### ? | | ?## ####### ########### ##?##?# ? | | #?# ##!####### [ ##### #####?##?# | | #### ##!####### ###### ###???##?## | | ??### ##%###### ###### ####### ####?##?##?? | | ##### ##!##### #### ##?#############????#? | | #???# % #########?#?#?##?????? | | ##?### ####### ###############??????# | | ?#?############# #####?#############??????? | | ##?#?#?#?########## ######?#?#####??##?#?#?????? | | ?#?###??#?######?#####?#############???????#????? | | ?#?#####?#?###?###############?#?#??????????????? | | | +----------------------------------------------------+ Best States ------------- Heat Dissipation 25 Energy Generation 14 Energy Capacity 250 Matter Stores 300 Matter Capacity 300 Sight Range 16 Terrain Scan Range 16 Terrain Scan Density 260 Armor Coverage 300 Evasion (%) 45 Targeting Accuracy 5 Launcher Accuracy 20 Recoil Reduction 2 Offensive Hacking 5 Defensive Hacking 5 Item Schematics ----------------- None Robot Schematics ------------------ None Fabricated ------------ Nothing Alien Tech Used ----------------- None Achievements -------------- None Challenges ------------ None RPGLIKE | -11 -10 -10 --------- Run | Scr Mat Min Levels Raised 2 | . 1 1 XP Earned 7484 | 3000 2510 1974 XP Spent 4690 | 2250 1340 1100 Upgrades 11 | 5 5 1 Propulsion Slot 1 | 1 . . Utility Slot 3 | 1 1 1 Weapon Slot 1 | 1 . . Inventory Capacity 2 | 2 . . Terrain Scan Density 2 | . 2 . Hack Attack % 1 | . 1 . Hack Defense % 1 | . 1 . Protomatter Created 219 | . 123 96 Integrity Restored 762 | . 369 393 Core 759 | . 369 390 Parts 3 | . . 3 Protomatter Decayed 6 | . . 6 Game ------ Seed HardcellPulseSuite Manual? 0 Play Time 00:19:08 Cumulative 163.0 hours Start 2020.08.31 @ 22:13:17 End 2020.08.31 @ 22:51:34 Sessions 1 Manual Loads 0 Difficulty Rogue Special Mode Winter2019/RPGLIKE Game No. 68 Rogue 68 Adventurer 0 Explorer 0 Win Type - Total 2 Types 1/0/0/1/0/0/0 Lore% 79 Gallery% 73 Achievement% 66 Wizard Run 0 Options --------- ASCII 0 Keyboard 0 Movement Numpad Keybinds 0 Fullscreen 1 Font 18/SmallcapsGlow Map View 76x50 Tactical HUD 1 Map Filters NONE Filters NONE Steam 1 RUN: 01933113-fda2-47fe-89b5-1a9c0b059d5e